Cogmind - Beta 16 @@@ ROGUE MODE // 2025.10.24 @ 11:02:46 Player: Uranium-235 Result: Destroyed by YI-UF0 with YI-UF0's Doublenader Performance ------------- Evolutions (0) 0 Regions Visited (2) 400 Robots Destroyed (32) 160 Value Destroyed (620) 620 Prototype IDs (2) 40 Alien Tech Used (0) 0 Bonus (-11) -11 TOTAL SCORE: 1209 Bonus ------- Follower Combat Kills 35 Friendly Fire -46 Cogmind --------- Core Integrity 0/250 Matter 300/300 Energy 265/265 System Corruption 0% Temperature Cool (0) Movement Treading (240) Ox1 Location -10/Mines Parts ------- > --- POWER (1) -------- Improved Ion Engine > --- PROPULSION (2) --- Light Treads Light Treads > --- UTILITY (2) ------ High-capacity Storage Unit Seismic Detector > --- WEAPON (2) ------- Grenade Launcher > --- INVENTORY (20) --- Improved Ion Engine Light Treads Light Treads Heat Sink Improved Heat Sink Improved Heat Sink Cargo Storage Unit Large Matter Pod (150) Structural Scanner Light Armor Plating Light Armor Plating Tractor Beam Beam Rifle Heavy Assault Rifle Heavy Assault Rifle Grenade Launcher Grenade Launcher Grenade Launcher Rocket Launcher Peak State ------------ > --- POWER ------------ Improved Ion Engine > --- PROPULSION ------- Light Treads Light Treads > --- UTILITY ---------- High-capacity Storage Unit Seismic Detector > --- WEAPON ----------- Beam Cannon Heavy Assault Rifle > --- INVENTORY -------- Improved Ion Engine Light Treads Light Treads Heat Sink Improved Heat Sink Cargo Storage Unit Large Matter Pod Light Armor Plating Light Armor Plating Heavy Assault Rifle Grenade Launcher Grenade Launcher Grenade Launcher Rocket Launcher [Rating: 11] Favorites ----------- Power Improved Ion Engine Engine Improved Ion Engine Propulsion Light Treads Treads Light Treads Utility Seismic Detector Device Seismic Detector Storage High-capacity Storage Unit Weapon Beam Cannon Energy Gun EM Pulse Gun Energy Cannon Beam Cannon Ballistic Gun Heavy Assault Rifle Launcher Grenade Launcher Build | -11 -10 -10 ------- Run | Yrd Mat Min Slots Evolved . | . . . Power . | . . . Propulsion . | . . . Utility . | . . . Weapon . | . . . Parts Attached 22 | 8 8 6 Power 3 | 1 1 1 Engine 3 | 1 1 1 Core . | . . . Reactor . | . . . Propulsion 6 | 2 3 1 Treads 6 | 2 3 1 Leg . | . . . Wheel . | . . . Hover . | . . . Flight . | . . . Utility 5 | 2 1 2 Device 2 | 1 . 1 Storage 3 | 1 1 1 Processor . | . . . Hackware . | . . . Protection . | . . . Artifact . | . . . Weapon 8 | 3 3 2 Energy Gun 1 | 1 . . Energy Cannon 2 | . 2 . Ballistic Gun 3 | 2 . 1 Ballistic Cannon . | . . . Launcher 2 | . 1 1 Special Weapon . | . . . Impact Weapon . | . . . Slashing Weapon . | . . . Piercing Weapon . | . . . Special Melee Weapon . | . . . Unidentified Prototypes . | . . . Parts Lost 4 | . 2 2 Power 1 | . 1 . Propulsion . | . . . Utility . | . . . Weapon 3 | . 1 2 Highest Loss Streak 2 | . 2 1 To Critical Strikes 1 | . . 1 Average Backups 12 | 5 7 14 Power . | . 1 1 Propulsion 2 | 3 3 2 Utility 4 | . . 5 Weapon 4 | . 2 5 Tool/Special . | . . . Unused Backups 24 | . 5 19 Power 2 | . . 2 Propulsion 7 | . 5 2 Utility 8 | . . 8 Weapon 7 | . . 7 Tool/Special . | . . . Average Slot Usage (%) 98 | . 94 99 Engine 12 | . 9 14 Treads 28 | . 28 28 Device 14 | . 14 14 Storage 14 | . 14 14 Energy Cannon 15 | . 12 15 Ballistic Gun 8 | . 7 9 Launcher 3 | . 4 2 Peak Build Rating 11 | 7 8 11 Average Rating 9 | 5 6 10 On Entrance 5 | . 7 8 Avg Prop Armor Cover (%) . | . . . Naked Turns . | . . . Heaviest Build 54 | 15 22 54 Greatest Support 40 | 40 40 40 Greatest Overweight (x) 1 | . . 1 Average Overweight (x) . | . . . Largest Inventory Capacity 20 | 8 10 20 Average Capacity 14 | 7 8 17 Most Carried 20 | 7 10 20 Average Carried 13 | 5 7 15 Final Capacity 20 | 8 10 20 Final Carried 20 | 7 10 20 Class Distribution -------------------- 60% | Scavenger-Mutant 39% | Mutant Dominant Class ---------------- Mutant | -10/Materials Scavenger-Mutant | -10/Mines Resources | -11 -10 -10 ----------- Run | Yrd Mat Min Matter Collected 780 | 283 250 247 Remotely . | . . . Salvage Created 888 | 133 429 326 Parts 66 | 4 41 21 Haulers Intercepted 1 | . 1 . Recyclers Shooed . | . . . Parts Field Recycled . | . . . Retrieved Matter . | . . . Parts Self-Destructed . | . . . Prevented . | . . . Parts Restored . | . . . Kills | -11 -10 -10 ------- Run | Yrd Mat Min Combat Hostiles Destroyed 21 | . 13 8 Guns 4 | . 3 1 Cannons 11 | . 6 5 AOE 6 | . 4 2 Classes Destroyed 7 | 2 4 1 Builder 1 | . . 1 Tunneler 5 | 3 2 . Hauler 1 | . 1 . Recycler 3 | 1 . 2 Watcher 1 | . 1 . Swarmer 9 | . 6 3 Grunt 12 | . 7 5 Best Kill Streak 5 | 3 5 3 Combat Bots Only 5 | . 5 3 Max Kills in Single Turn 2 | 1 2 1 Gunslinging . | . . . Exploded 2 | . 2 1 Melee . | . . . Uniques/NPCs Destroyed . | . . . Combat | -11 -10 -10 -------- Run | Yrd Mat Min Hostile Shots Fired 166 | . 105 61 Missed 43 | . 29 14 Hits 123 | . 76 47 Projectile 123 | . 76 47 AOE 3 | . . 3 Critical Strikes 2 | . 1 1 Damage Taken 1367 | 6 753 608 Core 254 | . 115 139 Absorbed by Shields . | . . . Core Remaining (%) 100 | 100 . . Volleys Fired 90 | 12 40 38 Largest 2 | 2 2 2 Hottest 120 | 60 120 120 Shots Fired 163 | 24 77 62 Gun 79 | 24 35 20 Cannon 67 | . 36 31 Launcher 17 | . 6 11 Special . | . . . Kinetic 64 | 12 32 20 Thermal 67 | . 36 31 Explosive 17 | . 6 11 Electromagnetic 15 | 12 3 . Robot Hit Streak 13 | 4 8 13 Robot Miss Streak 6 | 3 6 6 Penetration Max . | . . . Secondary Targets . | . . . Shots Hit Robots 84 | 14 40 30 Core Hits 43 | 5 20 18 Critical Kills . | . . . Critical Parts Destroyed . | . . . Critical Strikes . | . . . Melee Attacks . | . . . Impact . | . . . Slashing . | . . . Piercing . | . . . Sneak Attacks . | . . . Combat Hostiles . | . . . Follow-up Attacks . | . . . Damage Inflicted 1943 | 250 887 806 Guns 456 | 185 160 111 Cannons 684 | . 402 282 Explosions 803 | 65 325 413 Melee . | . . . Ramming . | . . . Kinetic 380 | 119 150 111 Thermal 749 | 65 402 282 Explosive 738 | . 325 413 Electromagnetic 76 | 66 10 . Impact . | . . . Slashing . | . . . Piercing . | . . . Highest Corruption . | . . . Average Corruption . | . . . Corruption Purged . | . . . Corruption Blocked . | . . . Overload Shots . | . . . Overflow Damage 32 | 24 8 . Projectiles . | . . . Explosions 32 | 24 8 . Melee . | . . . Knockbacks . | . . . Impact . | . . . Kinetic . | . . . Secondary . | . . . Self-Inflicted Damage 61 | 6 . 55 Shots 5 | 1 . 4 Rammed . | . . . Targets Rammed . | . . . Kicked . | . . . Crushed . | . . . Highest Temperature 219 | 12 219 126 Average Temperature 62 | 12 75 47 Received Heat Transfer 459 | . 288 171 Effects 1 | . 1 . Energy Bleed 1 | . 1 . Siege Activations . | . . . Martial Activations . | . . . Shielding Activations . | . . . Robots Disrupted . | . . . Combat Hostiles . | . . . Robots Corrupted . | . . . Combat Hostiles . | . . . Parts Fried . | . . . Impact Corruptions . | . . . Robots Melted . | . . . Combat Hostiles . | . . . Parts Melted 3 | . 2 1 Heat Transferred 1543 | 100 851 592 Parts Sabotaged . | . . . Parts Stolen . | . . . Parts Stripped . | . . . Power Chain Reactions 1 | 1 . . Alert | -11 -10 -10 ------- Run | Yrd Mat Min Maximum Alert Level 1 | . 1 . Low Security (%) 91 | 100 60 100 Level 1 8 | . 39 . Level 2 . | . . . Level 3 . | . . . Level 4 . | . . . Level 5 . | . . . High Security . | . . . Max Security . | . . . Peak Influence 283 | 10 283 80 Initial 76 | . . 76 Average 38 | 1 141 10 Influence Increases 695 | 20 419 256 Destroy 0b10 Robot/C 440 | . 260 180 Destroy 0b10 Robot/NC 55 | 20 20 15 Destroy Leader 84 | . 54 30 Allied During Kill 2 | . . 2 Successful Hack 35 | . 35 . Disable Machine 30 | . 30 . Destroy Structure 49 | . 20 29 Influence Decreases 634 | 20 223 391 Entered New Map 120 | . . 120 Time Decay 464 | 20 203 241 Lost Part 30 | . 20 10 Lost Ally 20 | . . 20 Squads Dispatched 3 | . 2 1 Investigation 2 | . 2 . Extermination . | . . . Reinforcement . | . . . Assault 1 | . . 1 Garrison . | . . . Intercept . | . . . Searches Triggered . | . . . Construction Impeded . | . . . Haulers Reinforced . | . . . Active Scanning Responses . | . . . Cargo Convoy Interrupts . | . . . Stealth | -11 -10 -10 --------- Run | Yrd Mat Min Distress Signals 2 | . 2 . Communications Jammed . | . . . Distress Signals . | . . . Times Spotted 27 | . 16 11 Peak Tracking Total 6 | . 6 4 Tactical Retreats . | . . . Traps | -11 -10 -10 ------- Run | Yrd Mat Min Traps Triggered 1 | . 1 . Indirectly . | . . . Trap Hack Attempts . | . . . Triggered . | . . . Disarmed . | . . . Reprogrammed . | . . . Reused . | . . . Traps Extracted . | . . . Installed . | . . . Triggered . | . . . Machines | -11 -10 -10 ---------- Run | Yrd Mat Min Machines Disabled 2 | . 2 . Max in Single Turn 1 | . 1 . Machines Repaired . | . . . Machines Dismantled . | . . . Machines Sabotaged . | . . . Overloaded Fab Kills . | . . . Hacking | -11 -10 -10 --------- Run | Yrd Mat Min Machines Accessed 6 | . 6 . Terminals 6 | . 6 . Fabricators . | . . . Repair Stations . | . . . Recycling Units . | . . . Scanalyzers . | . . . Garrison Access . | . . . Total Hacks 24 | . 24 . Successful 11 | . 11 . Failed 13 | . 13 . Catastrophic 3 | . 3 . Database Lockouts . | . . . Manual 21 | . 21 . Terminals 24 | . 24 . Fabricators . | . . . Repair Stations . | . . . Recycling Units . | . . . Scanalyzers . | . . . Garrison Access . | . . . Terminal Hacks 6 | . 6 . Part Schematic 1 | . 1 . Prototype ID Bank 1 | . 1 . Terminal Index 1 | . 1 . Locate Traps 1 | . 1 . Hauler Manifests 1 | . 1 . Registered Components 1 | . 1 . Fabricator Hacks . | . . . Repair Station Hacks . | . . . Recycling Unit Hacks . | . . . Scanalyzer . | . . . Garrison Access Hacks . | . . . Unauthorized Hacks 5 | . 5 . Terminals 5 | . 5 . Botnet 5 | . 5 . Fabricators . | . . . Repair Stations . | . . . Recycling Units . | . . . Scanalyzers . | . . . Garrison Access . | . . . Data Cores Recovered . | . . . Used . | . . . Hacking Detections 6 | . 6 . Full Trace Events 1 | . 1 . Feedback Events . | . . . Feedback Blocked . | . . . Robot Schematics Acquired . | . . . Robots Built . | . . . Authchips . | . . . Time . | . . . Total Robot Build Rating . | . . . Part Schematics Acquired 1 | . 1 . Parts Built . | . . . Authchips . | . . . Time . | . . . Total Part Build Rating . | . . . Part Studies Acquired . | . . . Parts Repaired . | . . . Time . | . . . Parts Recycled . | . . . Recycled Matter . | . . . Retrieved Matter . | . . . Retrieved Components . | . . . Parts Scanalyzed . | . . . Part Schematics Acquired . | . . . Parts Damaged . | . . . Bothacking | -11 -10 -10 ------------ Run | Yrd Mat Min Used RIF Installer . | . . . Robots Hacked . | . . . Non-combat . | . . . Combat . | . . . Robot Hacks Applied . | . . . Relay Couplers Released . | . . . Fabnet Peak Effective % . | . . . Robots Rewired . | . . . Allies Hacked . | . . . Hacks Repelled . | . . . Allies | -11 -10 -10 -------- Run | Yrd Mat Min Total Allies 1 | . . 1 Largest Group 1 | . . 1 Highest-Rated Group 31 | . . 31 Highest-Rated Ally 31 | . . 31 Total Orders . | . . . Ally Attacks 6 | . . 6 Total Damage 124 | . . 124 Kills 1 | . . 1 Allies Corrupted . | . . . Allies Melted . | . . . Intel | -11 -10 -10 ------- Run | Yrd Mat Min Active Infowar (turns) 2431 | 61 572 1798 Seismic 2431 | 61 572 1798 Robot Analysis Total . | . . . Derelict Logs Recovered 1 | . . 1 Drone Launches . | . . . Drone Recoveries . | . . . Exploration | -11 -10 -10 ------------- Run | Yrd Mat Min Turns Passed 2638 | 168 572 1898 Spaces Moved 1112 | 74 268 770 Core 3 | 3 . . Treads 1109 | 71 268 770 Legs . | . . . Wheels . | . . . Hover . | . . . Flight . | . . . Fastest Speed 50 | 50 160 160 Average Speed 195 | 155 160 211 Slowest Speed 240 | 160 160 240 Overloaded Moves . | . . . Propulsion Burnouts . | . . . Robots Hopped . | . . . Potential Cave-ins 2 | . . 2 Cave-ins Triggered . | . . . Exploration Rate (%) 52 | 5 57 96 Regions Visited 2 Branch Regions 1 Pre-discovered Areas 1 | . . 1 Known Exits Taken . | . . . Unknown Exits Taken 2 | 1 1 . Scrap Searched 2 | . . 2 Spaces Dug 19 | . . 19 Terrain Destroyed 70 | 5 16 49 Melee . | . . . Projectile . | . . . AOE 70 | 5 16 49 Terrain Rammed . | . . . Walls Destroyed . | . . . Machines Disabled . | . . . Actions | -11 -10 -10 --------- Run | Yrd Mat Min Total 1417 | 99 339 979 Wait 144 | . 2 142 Move 1110 | 73 267 770 Hop . | . . . Pick Up 31 | 6 11 14 Fast Attach 8 | 7 1 . Attach 2 | . 1 1 Detach . | . . . Swap 14 | 1 6 7 Drop 18 | . 11 7 Fire 90 | 12 40 38 Melee . | . . . Ram . | . . . Kick . | . . . Crush . | . . . Escape Stasis . | . . . Rewire . | . . . Trap . | . . . Miscellaneous . | . . . Route ------- -11/Scrapyard -10/Materials (discovered 2 exits: [*Mat] / [*Min]) -10/Mines (discovered 2 exits: [*Mat x2]) History --------- Turn | Location | Event 30 | -11/Scrapyard | Discovered new exit (range 15) 169 | -11/Scrapyard | Entered Materials 302 | -10/Materials | Build established: Mutant 365 | -10/Materials | Discovered new exit (range 9) 599 | -10/Materials | Discovered new exit (range 16) 741 | -10/Materials | Entered Mines 758 | -10/Mines | Learned location of Storage (-9) 972 | -10/Mines | Build established: Scavenger-Mutant 1086 | -10/Mines | Joined a pair of Derelicts in attacking an 0b10 outpost 1317 | -10/Mines | Core integrity fell below 50% 1329 | -10/Mines | Discovered new exit (range 9) 1406 | -10/Mines | Received a Rocket Launcher from a helpful Derelict 1523 | -10/Mines | YI-UF0 nonchalantly dropped a Grenade Launcher on the ground 2088 | -10/Mines | Learned Materials terminal intel 2208 | -10/Mines | Met a Derelict testing a Signal Generator 2390 | -10/Mines | Discovered new exit (range 9) 2540 | -10/Mines | Build established: Mutant 2638 | -10/Mines | Core integrity fell below 20% 2639 | -10/Mines | Destroyed by YI-UF0 with YI-UF0's Doublenader Last Messages --------------- 02597_ Acquired 8 matter. 02598_ U-05 Engineer builds a Wall. 02599_ K-01 Serf collects debris. 02603_ U-05 Engineer lays Concrete. 02605_ U-05 Engineer builds a Wall. 02609_ U-05 Engineer lays Concrete. 02620_ K-01 Serf collects debris. 02620_ U-05 Engineer builds a Wall. 02622_ The unstable cave ceiling collapses. 02625_ U-05 Engineer lays Concrete. 02626_ K-01 Serf collects debris. 02627_ U-05 Engineer builds a Wall. 02627_ U-05 Engineer lays Concrete. 02630_ K-01 Serf collects debris. 02631_ U-05 Engineer lays Concrete. 02634_ U3-4EV(g) destroyed. 02634_ U-05 Engineer lays Concrete. 02637_ Beam Cannon destroyed. 02637_ YI-UF0: "WHAAM!" 02637_ U-05 Engineer destroyed. Map ----- +----------------------------------------------------+ | ???????# ## ##?# #????# #????# | | ???????# """ ######??# #????#####???# # | | ???????#### """ ######### #????????????# ## | | ????????#### """ #????????????## #? | | ????????# """ ### ### ##?????????????## ##? | | ????????# #?# #?# #???????????????#####?# | | ????????# #### ### #?# ####??????????????????# | | ?????#### ##### ## ## #??????????????????? | | ?????# ## # # #??????????????????? | | ?????# ### #??????????????????? | | ?????# < #?## #?????????????????## | | ?????# #??## g #????????????????## | | ?????# #?????# ################## | | ?????# """ ####??? # #%% | | ?????# """ #???# #]############### | | ?????#%""" ## #???# #????????????## | | ?????#= ## #???# % #?????????????? | | ?????# """ ## #???## ##?????????????? | | ?????# """ ## #????# #?????????????? | | ?????# """ ## #?????# #?????####?????? | | ?????# =% ## #????## = # #????## ##????? | | ?????## ######## #??### *%| ## #???## #????? | | ??????# ######## #??# k |## #??## #????? | | ??????# #?## !%## #??# #?????? | | ??????########## #?# =!* #?## ###?????? | | ???????????????# #??# @ ==### ##???????? | | ???????????????# #??## ! ## ### #????????? | | ???????????????# #???# ! ####%#?# ##????????? | | ???????????????# ####### ##??#*#?## ########### | | ???????????????# #####*#### | | ???????????????##### ####### #= * # | | ???????????????????# #???## % % ########### | | ???????????????????# #??## # #?????????# | | ???????????????????# #?## * #?????????# | | ???????????????????# #?# = ##????????## | | ???????????????????# #?# = #?????????# | | ???????????????????# #?## %###?????????# | | ???????????????????# #?## [### #?????## | | ???????????????????# ### #??????# | | ???????#???????????# ## #???????? | | ???????# ####??????# ##???????# | | ???????# ??????# ##???????## | | ???????? ##????### ### ##### ####????????# | | ??????????# ##??## ### #???# #???????????# | | ???????????# #### ## #???# #???????????## | | ????????????# """ #????????????# | | ????????????# """ #????####????# | | ????????????# #### """ # ????## #???? | | ???????????## #??# ??????# #### | | ???????????# ##?## #??????# | +----------------------------------------------------+ Best States ------------- Heat Dissipation 35 Energy Generation 12 Energy Capacity 265 Matter Stores 300 Matter Capacity 300 Sight Range 16 Terrain Scan Density 10 Evasion (%) 40 Recoil Reduction 2 Item Schematics ----------------- Hcp. Storage Unit | -10/Materials | Hacked Robot Schematics ------------------ None Fabricated ------------ Nothing Repaired ---------- Nothing Studied --------- None Alien Tech Used ----------------- None Achievements -------------- None Challenges ------------ None Game ------ Seed NullKineticMonowheel Manual? 0 Play Time 00:15:45 Cumulative 53.4 hours Start 2025.10.24 @ 10:47:54 End 2025.10.24 @ 11:02:46 Sessions 1 Manual Loads 0 Difficulty Rogue Special Mode None Game No. 56 Rogue 56 Adventurer 0 Explorer 0 Win Type - Total 0 Types 0/0/0/0/0/0/0/0/0/0 Lore% 28 Gallery% 39 Achievement% 24 Wizard Run 0 Options --------- Layout 1 ASCII 0 Keyboard 1 Movement Numpad Keybinds 0 Fullscreen 1 Font 24/Smallcaps Map View 50x35 Zoom Use 0% Tactical HUD 1 Map Filters NONE Filters NONE Steam 1 RUN: e2e42c56-36a8-4da0-a21e-99e4e648cc01